bitfinex/quotes_ETHUSD_20251116
["timestamp","ask_amount","ask_price","bid_price","bid_amount"]
[1763263651393,1.83190015,3204.2,3204.1,1.0559]
[1763263652529,1.83190015,3204.2,3204.1,0.6006]
[1763263653587,0.29265535,3204.2,3204.1,1.0559]
[1763263659352,0.29265535,3204.2,3204.1,0.6006]
[1763263660251,0.29265535,3204.2,3204.1,1.0559]
[1763263661341,0.29265535,3204.2,3204.1,0.6006]
[1763263661519,0.29265535,3204.2,3204.1,1.0559]
[1763263666969,0.29265535,3204.6,3204.1,4.56977024]
[1763263667160,0.29265535,3204.5,3204.2,0.91237702]
[1763263667474,0.29265535,3204.4,3204.2,0.4553]
[1763263667634,0.29265535,3204.3,3204.1,0.1453]
[1763263667833,0.29265535,3204.2,3204.1,0.1453]
[1763263668044,0.29265535,3204.6,3204.1,0.1453]
[1763263668251,0.29265535,3204.5,3204.2,0.4553]
[1763263668560,0.405504,3204.9,3204.4,0.4553]
[1763263668754,0.405504,3204.7,3204.6,0.4553]
[1763263668953,0.69785468,3204.7,3204.6,0.4553]
[1763263669160,0.29235068,3204.7,3204.6,0.4553]
[1763263678993,0.29235068,3204.7,3204.6,0.9106]
[1763263679489,0.29235068,3204.7,3204.6,0.4553]
[1763263680005,0.29235068,3204.7,3204.6,0.9106]
[1763263680309,0.29235068,3204.7,3204.6,1.38425216]
[1763263680455,0.29235068,3205.5,3204.6,4.86691726]
[1763263680793,0.29235068,3205.4,3205.0,3.51387024]
[1763263680959,0.405504,3205.2,3204.9,0.83354455]
[1763263681277,0.405504,3205.2,3204.5,1.28884455]
[1763263681278,0.29235068,3205.1,3204.5,1.28884455]
[1763263681492,0.29235068,3205.0,3204.5,0.4553]
[1763263681696,0.29235068,3204.9,3204.5,0.4553]
[1763263681897,0.29235068,3204.8,3204.5,0.4553]
[1763263682084,0.29235068,3204.7,3204.6,0.83354455]
[1763263682435,0.29235068,3204.7,3204.5,1.28884455]
[1763263682697,0.405504,3205.2,3204.6,0.4553]
[1763263682851,0.29264432,3205.1,3204.6,0.4553]
[1763263683052,0.29264432,3205.0,3204.6,0.4553]
[1763263683284,0.29264432,3204.9,3204.6,0.4553]
[1763263683489,0.29264432,3204.8,3204.5,3.51387024]
[1763263683779,0.405504,3205.4,3204.7,4.34741479]
[1763263683982,0.29264932,3205.3,3204.7,4.80271479]
[1763263684206,0.29264932,3205.2,3204.8,0.4553]
[1763263684348,0.29264932,3205.1,3204.8,0.4553]
[1763263684544,0.29264932,3205.0,3204.9,3.51387024]
[1763263684783,0.29264932,3205.0,3204.9,3.99414172]
[1763263685081,0.405504,3205.8,3204.9,4.90474172]
[1763263685082,0.405504,3205.6,3204.9,4.90474172]
[1763263685282,0.29264932,3205.5,3205.0,0.4553]
[1763263685468,0.405504,3205.6,3205.0,0.4553]
[1763263685469,0.29264932,3205.4,3205.0,0.4553]
[1763263685686,0.29264932,3205.3,3204.9,0.48027148]
[1763263685863,0.29264932,3205.2,3204.8,0.83354455]
[1763263686214,0.29264932,3205.1,3204.8,0.4553]
[1763263686433,0.29264932,3205.5,3204.9,0.4553]
[1763263686710,0.29264932,3205.4,3205.0,0.4553]
[1763263686877,0.29264932,3205.3,3205.0,0.4553]
[1763263687211,0.29264932,3205.2,3205.1,0.1688]
[1763263687373,0.29264932,3205.6,3205.1,1.0794]
[1763263687574,0.29264932,3205.5,3205.2,3.51387024]
[1763263687804,0.405504,3206.1,3205.2,3.96917024]
[1763263687805,0.29264932,3205.4,3205.2,3.96917024]
[1763263688010,0.29264932,3205.3,3205.2,3.98024741]
[1763263688211,0.405504,3205.9,3205.2,3.98024741]
[1763263688410,0.29264932,3205.8,3205.2,3.96917024]
[1763263688607,0.29264932,3205.7,3205.2,0.4553]
[1763263688813,0.29264932,3205.6,3205.2,0.4553]
[1763263689015,0.29264932,3205.5,3205.2,0.4553]
[1763263689212,0.29264932,3205.4,3205.2,0.4553]
[1763263689514,0.29264932,3205.8,3205.2,0.45932702]
[1763263689712,0.29264932,3205.7,3205.1,0.6241]
[1763263689933,0.29264932,3205.6,3205.1,0.6241]
[1763263690117,0.29264932,3205.5,3205.1,0.6241]
[1763263690317,0.29264932,3205.4,3205.1,0.6241]
[1763263690483,0.29264932,3205.8,3205.1,0.6241]
[1763263690685,0.29264932,3205.7,3205.1,0.6241]
[1763263690916,0.29264932,3205.6,3205.1,1.03789702]
[1763263691125,0.29264932,3205.5,3205.1,1.03789702]
[1763263691326,0.29264932,3205.8,3205.1,1.03789702]
[1763263691524,0.29264932,3205.7,3205.1,1.03789702]
[1763263691824,0.29264932,3205.6,3205.1,1.03789702]
[1763263692032,0.29264932,3205.5,3205.1,1.03789702]
[1763263692188,0.29264932,3205.8,3205.1,1.03789702]
[1763263692391,0.29264932,3205.7,3205.1,0.6241]
[1763263692698,0.29264932,3205.6,3205.1,0.6241]
[1763263692898,0.29264932,3205.5,3205.1,0.6241]
[1763263693095,0.29191774,3205.8,3205.1,0.1688]
[1763263693322,0.29191774,3205.7,3205.2,0.4553]
[1763263693502,0.29191774,3205.6,3205.2,0.4553]
[1763263693703,0.29191774,3205.5,3205.2,0.4553]
[1763263693910,0.405504,3205.8,3205.2,0.4553]
[1763263694244,0.29191774,3205.7,3205.2,0.4553]
[1763263694438,0.29191774,3205.6,3205.2,0.4553]
[1763263694643,0.29191774,3205.5,3205.2,0.4553]
[1763263694797,0.29191774,3205.7,3205.2,0.86909702]
[1763263694998,0.29191774,3205.6,3205.2,0.4553]
[1763263695198,0.29191774,3205.5,3205.2,0.4553]
[1763263695412,0.29191774,3205.7,3205.2,0.4553]
[1763263695697,0.29191774,3205.6,3205.2,0.4553]
[1763263695999,0.29191774,3205.5,3205.2,0.4553]
[1763263696200,0.29191774,3205.7,3205.2,0.4553]
[1763263696403,0.29191774,3205.6,3205.2,0.4553]
[1763263696599,0.29191774,3205.5,3205.2,0.4553]
[1763263696817,0.29191774,3205.7,3205.2,0.4553]
[1763263697017,0.29191774,3205.6,3205.2,0.4553]
[1763263697218,0.29191774,3205.5,3205.2,0.4553]
[1763263697420,0.29191774,3205.7,3205.2,0.4553]
[1763263697615,0.29191774,3205.6,3205.4,0.4553]
[1763263697819,0.29191774,3205.5,3205.4,0.4553]
[1763263698020,0.29191774,3205.7,3205.4,0.4553]
[1763263698345,0.29191774,3205.6,3205.4,0.4553]
[1763263698547,0.29191774,3205.5,3205.4,0.4553]
[1763263698842,0.29191774,3205.7,3205.4,0.4553]
[1763263699039,0.29191774,3205.7,3205.5,0.4553]
[1763263699243,0.2919088,3206.0,3205.6,0.4553]
[1763263699408,0.4861,3206.2,3205.6,0.4553]
[1763263699409,0.2919088,3205.9,3205.6,0.4553]
[1763263699724,0.2919088,3206.0,3205.6,0.4553]
[1763263699923,0.2919088,3205.9,3205.6,0.4553]
[1763263700136,0.7760088,3206.0,3205.6,0.4553]
[1763263700332,0.2919088,3205.9,3205.6,0.4553]
[1763263700918,0.2919088,3205.9,3205.8,0.4553]
[1763263701124,0.2919088,3206.1,3205.8,0.4553]
[1763263701332,0.2919088,3206.0,3205.8,0.4553]
[1763263701536,0.2919088,3205.9,3205.8,0.4553]
[1763263701737,0.2919088,3206.0,3205.5,0.4553]
[1763263701946,0.2919088,3205.9,3205.5,0.4553]
[1763263702255,0.2919088,3206.0,3205.5,0.4553]
[1763263702421,0.2919088,3205.9,3205.5,0.4553]
[1763263702620,0.2919088,3206.0,3205.5,0.4553]
[1763263702821,0.2919088,3205.9,3205.5,0.4553]
[1763263703054,0.2919088,3206.0,3205.5,0.4553]
[1763263703358,0.2919088,3205.9,3205.5,0.4553]
[1763263703524,0.2919088,3206.0,3205.5,0.4553]
[1763263703726,0.2919088,3205.9,3205.5,0.4553]
[1763263703936,0.2919088,3206.0,3205.5,0.4553]
[1763263704121,0.2919088,3205.9,3205.5,0.4553]
[1763263704324,0.2919088,3206.0,3205.5,0.4553]
[1763263704534,0.2919088,3205.9,3205.5,0.4553]
[1763263704739,0.2919088,3206.0,3205.5,0.4553]
[1763263704926,0.2919088,3205.9,3205.5,0.4553]
[1763263705138,0.2919088,3206.1,3205.5,0.4553]
[1763263705337,0.2919088,3206.0,3205.5,0.4553]
[1763263705539,0.2919088,3205.9,3205.5,0.85221702]
[1763263705737,0.2919088,3205.8,3205.5,0.85221702]
[1763263706063,0.7760088,3206.1,3205.8,0.001]
[1763263706227,0.2919088,3206.0,3205.8,0.001]
[1763263706429,0.7718088,3205.9,3205.8,0.001]
[1763263706830,0.2919088,3205.9,3205.8,0.001]
[1763263707051,0.7718088,3205.9,3205.8,0.001]
[1763263709041,0.2919088,3205.9,3205.8,0.001]
[1763263709392,6.50662384,3205.9,3205.8,0.001]
[1763263709673,11.68710436,3205.9,3205.8,0.001]
[1763263710084,8.56785548,3205.9,3205.8,0.001]
[1763263710239,8.10420485,3205.9,3205.8,0.001]
[1763263711440,11.22345373,3205.9,3205.8,0.001]
[1763263712034,8.10420485,3205.9,3205.8,0.001]
[1763263713670,11.22345373,3205.9,3205.8,0.001]
[1763263713965,8.10420485,3205.9,3205.8,0.001]
[1763263715833,14.73732397,3205.9,3205.8,0.001]
[1763263716165,15.2009746,3205.9,3205.8,0.001]
[1763263716565,11.68710436,3205.9,3205.8,0.001]
[1763263717878,7.69870085,3205.9,3205.8,0.001]
[1763263718280,11.22345373,3205.9,3205.8,0.001]
[1763263720380,8.10420485,3205.9,3205.8,0.001]
[1763263720686,11.22345373,3205.9,3205.8,0.001]
[1763263720853,8.10420485,3205.9,3205.8,0.001]
[1763263721352,11.22345373,3205.9,3205.8,0.001]
[1763263721981,14.73732397,3205.9,3205.8,0.001]
[1763263722149,15.2009746,3205.9,3205.8,0.001]
[1763263722678,11.68710436,3205.9,3205.8,0.001]
[1763263724674,15.2009746,3205.9,3205.8,0.001]
[1763263725276,11.68710436,3205.9,3205.8,0.001]
[1763263728198,14.36743005,3205.9,3205.8,0.001]
[1763263728361,14.49249629,3205.9,3205.8,0.001]
[1763263728561,14.9621216,3205.9,3205.8,0.001]
[1763263728977,11.22946847,3205.9,3205.8,0.001]
[1763263729387,11.22960864,3205.9,3205.8,0.001]
[1763263729610,11.22960864,3205.9,3205.4,0.001]
[1763263729611,1.5392448,3205.8,3205.4,0.001]
[1763263729801,0.405504,3205.4,3205.1,0.001]
[1763263730088,5.28823215,3205.2,3205.1,0.001]
[1763263730276,9.63348717,3205.2,3205.1,0.001]
[1763263730594,10.11558717,3205.2,3205.1,0.001]
[1763263730760,11.3654149,3205.2,3205.1,0.001]
[1763263732712,11.49052926,3205.2,3205.1,0.001]
[1763263734124,11.02090395,3205.2,3205.1,0.001]
[1763263735291,4.16615068,3205.2,3205.1,0.001]
[1763263735503,0.29204897,3205.2,3205.1,0.4563]
[1763263735702,1.42578977,3205.2,3205.1,0.4563]
[1763263735907,1.42578977,3205.2,3205.1,0.6251]
[1763263736400,1.83129377,3205.2,3205.1,0.6251]
[1763263737726,1.83129377,3205.2,3205.1,0.4563]
[1763263737921,1.83129377,3205.2,3205.1,0.001]
[1763263740627,2.28519377,3205.2,3205.1,0.001]
[1763263740987,1.83129377,3205.2,3205.1,0.001]
[1763263741241,1.83129377,3205.2,3205.1,0.4563]
[1763263741607,2.28519377,3205.2,3205.1,0.001]
[1763263741942,3.65361467,3205.2,3205.1,0.001]
[1763263742412,3.17151467,3205.2,3205.1,0.001]
[1763263744205,2.28519377,3205.2,3205.1,0.001]
[1763263745534,2.77899377,3205.2,3205.1,0.001]
[1763263747320,2.4869448,3205.2,3205.1,0.001]
[1763263748422,1.9931448,3205.2,3205.1,0.001]
[1763263748729,0.405504,3205.1,3205.0,0.001]
[1763263749042,2.95798527,3205.1,3205.0,0.001]
[1763263749523,3.08308319,3205.1,3205.0,0.001]
[1763263749928,6.20311064,3205.1,3205.0,0.001]
[1763263750330,5.70931064,3205.1,3205.0,0.001]
[1763263750534,1.42524447,3205.1,3205.0,0.001]
[1763263750735,6.17281272,3205.1,3205.0,0.001]
[1763263751471,6.64777494,3205.1,3205.0,0.001]
[1763263751747,7.11740025,3205.1,3205.0,0.001]
[1763263756148,7.24250561,3205.1,3205.0,0.001]
[1763263763242,7.21770561,3205.1,3205.0,0.001]
[1763263766472,7.7076055,3205.1,3205.0,0.001]
[1763263766768,7.21770561,3205.1,3205.0,0.001]
[1763263767669,1.1337408,3205.0,3204.7,0.001]
[1763263767844,4.83433215,3204.7,3204.6,0.001]
[1763263768969,4.95944729,3204.7,3204.6,0.4563]
[1763263769532,5.92204729,3204.7,3204.6,0.001]
[1763263769762,10.66609152,3204.7,3204.6,0.001]
[1763263770073,10.82930565,3204.7,3204.6,0.001]
[1763263772686,10.36030565,3204.7,3204.6,0.001]
[1763263773171,10.82930565,3204.7,3204.6,0.001]
[1763263774260,10.36030565,3204.7,3204.6,0.001]
[1763263774461,10.81370565,3204.7,3204.6,0.001]
[1763263780274,9.86670565,3204.7,3204.6,0.001]
[1763263780480,9.86670565,3204.7,3204.6,0.4563]
[1763263780855,9.86670565,3204.7,3204.6,0.9116]
[1763263780856,0.77825345,3204.7,3204.6,0.9116]
[1763263781056,0.16321413,3204.7,3204.6,0.9116]
[1763263781283,0.56871813,3204.7,3204.6,0.9116]
[1763263781590,1.70245893,3204.7,3204.6,0.9116]
[1763263781792,4.82287581,3204.7,3204.6,0.9116]
[1763263782697,4.82287581,3204.7,3204.6,0.4563]
[1763263782897,1.70245893,3204.7,3204.6,0.4563]
[1763263783098,4.82287581,3204.7,3204.6,0.4563]
[1763263784094,1.70245893,3204.7,3204.6,0.4563]
[1763263785001,4.82287581,3204.7,3204.6,0.4563]
[1763263786806,1.70245893,3204.7,3204.6,0.4563]
[1763263787479,1.70245893,3204.7,3204.6,0.9116]
[1763263787681,4.82287581,3204.7,3204.6,0.9116]
[1763263787880,4.82287581,3204.7,3204.6,0.4563]
[1763263789104,1.70245893,3204.7,3204.6,0.4563]
[1763263789605,4.82287581,3204.7,3204.6,0.4563]
[1763263790975,8.33905595,3204.7,3204.6,0.4563]
[1763263791292,5.21863907,3204.7,3204.6,0.4563]
[1763263792326,8.33905595,3204.7,3204.6,0.4563]
[1763263792521,8.63182652,3204.7,3204.6,0.4563]
[1763263794225,5.11564638,3204.7,3204.6,0.4563]
[1763263795147,1.9952295,3204.7,3204.6,0.4563]
[1763263796002,1.9952295,3204.7,3204.6,0.9116]
[1763263796386,1.9952295,3204.7,3204.6,0.4563]
[1763263797528,1.9972295,3204.7,3204.6,0.4563]
[1763263798627,1.9972295,3204.7,3204.6,0.9116]
[1763263800834,0.4579847,3204.7,3204.6,0.4563]
[1763263801140,0.29477057,3204.7,3204.6,0.9116]
[1763263801601,4.21645471,3204.7,3204.6,0.4563]
[1763263801804,1.16477457,3204.7,3204.6,0.001]
[1763263802002,2.00434806,3204.7,3204.6,0.001]
[1763263802202,3.13808886,3204.7,3204.6,0.001]
[1763263802432,0.70027457,3204.7,3204.6,0.4563]
[1763263802664,0.70027457,3204.7,3204.6,0.9116]
[1763263804907,5.35019551,3204.7,3204.6,0.4563]
[1763263805136,5.82029551,3204.7,3204.6,0.001]
[1763263805436,3.17532486,3204.7,3204.6,0.001]
[1763263806126,7.24714174,3204.7,3204.6,0.001]
[1763263806554,4.12672486,3204.7,3204.6,0.001]
[1763263807666,3.64542486,3204.7,3204.6,0.001]
[1763263807969,1.83401537,3204.7,3204.6,0.4563]
[1763263808143,1.83401537,3204.7,3204.6,0.001]
[1763263808534,1.83401537,3204.7,3204.6,0.4563]
[1763263809549,1.83401537,3204.7,3204.6,0.9116]
[1763263809742,0.29477057,3204.7,3204.6,0.9116]
[1763263817274,0.002,3204.7,3204.6,0.9116]
[1763263817472,0.29477057,3204.7,3204.6,0.9116]
[1763263818176,0.002,3204.7,3204.6,0.9116]
[1763263818567,0.29477057,3204.7,3204.6,0.9116]
[1763263818771,0.002,3204.7,3204.6,0.9116]
[1763263819153,0.29477057,3204.7,3204.6,0.9116]
[1763263819355,0.002,3204.7,3204.6,0.9116]
[1763263819754,0.29477057,3204.7,3204.6,0.9116]
[1763263819971,0.002,3204.7,3204.6,0.9116]
[1763263820364,0.29477057,3204.7,3204.6,0.9116]
[1763263820689,0.002,3204.7,3204.6,0.9116]
[1763263821188,0.29477057,3204.7,3204.6,0.9116]
[1763263821390,0.002,3204.7,3204.6,0.9116]
[1763263821817,0.29477057,3204.7,3204.6,0.9116]
[1763263821999,0.002,3204.7,3204.6,0.9116]
[1763263822381,0.29477057,3204.7,3204.6,0.9116]
[1763263823080,0.002,3204.7,3204.6,0.9116]
[1763263823582,0.29477057,3204.7,3204.6,0.9116]
[1763263823778,0.002,3204.7,3204.6,0.9116]
[1763263824119,0.29477057,3204.7,3204.6,0.9116]
[1763263836316,0.29461543,3204.7,3204.6,0.9116]
[1763263838997,0.29461543,3204.7,3204.6,1.08631016]
[1763263839229,0.002,3205.1,3204.9,0.4553]
[1763263839527,3.51818014,3206.6,3205.0,4.42678014]
[1763263839726,3.51818014,3206.6,3205.3,4.97729424]
[1763263840025,0.16310206,3206.4,3205.3,4.97729424]
[1763263840253,0.16310206,3206.4,3205.3,4.59558014]
[1763263840430,3.6792822,3206.4,3205.3,2.48676203]
[1763263841241,3.6792822,3206.4,3205.1,4.63219895]
[1763263841242,0.4604,3205.4,3204.9,0.83620214]
[1763263841548,0.9447,3205.4,3204.8,0.83620214]
[1763263842048,0.4604,3205.4,3204.8,0.83620214]
[1763263842255,0.405504,3205.3,3204.8,1.09452525]
[1763263842450,0.405504,3205.3,3204.6,1.0119123]
[1763263842733,0.4843,3205.2,3204.6,1.0119123]
[1763263843306,0.405504,3205.3,3204.6,1.0119123]
[1763263844555,0.405504,3205.3,3204.6,1.4672123]
[1763263847867,0.407504,3205.3,3204.6,1.0119123]
[1763263848168,0.407504,3205.3,3205.2,0.4553]
[1763263848369,0.407504,3205.3,3204.7,0.4553]
[1763263850854,0.002,3205.3,3204.7,0.4553]
[1763263852160,0.4843,3205.2,3204.6,0.83720214]
[1763263852462,0.4843,3205.2,3204.6,1.03272424]
[1763263852839,0.002,3205.3,3204.6,1.03272424]
[1763263853829,0.002,3205.3,3204.7,0.4553]
[1763263854028,0.002,3205.3,3204.7,1.29150214]
[1763263854428,0.002,3205.3,3204.8,0.4553]
[1763263855061,0.002,3205.3,3204.7,0.83620214]
[1763263855774,0.4863,3205.3,3204.7,0.83620214]
[1763263855979,0.405504,3205.2,3204.7,0.83620214]
[1763263856463,0.4843,3205.1,3204.7,0.83620214]
[1763263856671,0.405504,3205.2,3204.7,0.83620214]
[1763263857179,0.6529,3204.8,3204.6,0.001]
[1763263857342,0.3854,3204.7,3204.6,0.001]
[1763263857538,0.4843,3204.9,3204.6,0.001]
[1763263858569,0.4584,3204.7,3204.6,0.001]
[1763263858975,0.9427,3204.7,3204.6,0.001]
[1763263859140,1.348204,3204.7,3204.6,0.001]
[1763263868099,1.4733031,3204.7,3204.6,0.001]
[1763263868665,5.72746078,3204.7,3204.6,0.001]
[1763263868865,7.07315837,3204.7,3204.6,0.001]
[1763263869294,3.95274149,3204.7,3204.6,0.001]
[1763263870183,7.23636068,3204.7,3204.6,0.001]
[1763263870669,4.1159438,3204.7,3204.6,0.001]
[1763263871309,7.23636068,3204.7,3204.6,0.001]
[1763263873571,4.1159438,3204.7,3204.6,0.001]
[1763263873972,2.77024621,3204.7,3204.6,0.001]
[1763263875724,5.89066309,3204.7,3204.6,0.001]
[1763263877178,2.77024621,3204.7,3204.6,0.001]
[1763263877379,5.89066309,3204.7,3204.6,0.001]
[1763263880309,2.77024621,3204.7,3204.6,0.001]
[1763263880507,3.75583603,3204.7,3204.6,0.001]
[1763263882003,6.87625291,3204.7,3204.6,0.001]
[1763263885743,3.75583603,3204.7,3204.6,0.001]
[1763263886118,0.16320231,3204.7,3204.6,0.9107]
[1763263887258,0.002,3205.1,3204.6,0.9107]
[1763263887417,0.002,3205.1,3205.0,0.4544]
[1763263888941,0.002,3205.1,3204.6,0.001]
[1763263888942,2.0051448,3205.1,3204.6,0.001]
[1763263889143,3.69978827,3204.9,3204.6,0.001]
[1763263889345,0.804204,3204.7,3204.6,0.001]
[1763263890121,1.283404,3204.7,3204.6,0.001]
[1763263891036,0.804204,3204.7,3204.6,0.001]
[1763263891835,1.1337408,3205.0,3204.6,0.9107]
[1763263892035,3.42137046,3205.1,3204.6,0.4563]
[1763263892036,0.002,3205.1,3204.6,0.4563]
[1763263892807,0.002,3205.1,3205.0,0.4544]
[1763263896049,0.405504,3205.0,3204.6,0.001]
[1763263896750,0.405504,3205.0,3204.6,0.4563]
[1763263898348,0.405504,3205.0,3204.9,0.4553]
[1763263900856,0.002,3205.1,3204.9,0.9106]
[1763263901055,0.002,3205.1,3205.0,0.9106]
[1763263905366,0.002,3205.1,3205.0,1.08528021]
[1763263907904,0.002,3205.1,3205.0,1.11648145]
[1763263909457,0.002,3205.1,3205.0,1.08528021]
[1763263910247,0.002,3205.1,3205.0,1.11648145]
[1763263911063,0.002,3205.3,3205.0,2.25022225]
[1763263911288,0.002,3205.4,3205.2,0.6241]
[1763263911586,0.002,3205.4,3205.3,1.28758965]
[1763263911993,0.002,3205.4,3205.3,1.74288965]
[1763263912996,0.002,3205.4,3205.3,0.4553]
[1763263913198,0.4759,3205.4,3204.8,0.83220584]
[1763263913397,0.4073,3205.3,3204.8,0.62345247]
[1763263913775,0.8776,3205.3,3204.8,0.62345247]
[1763263916399,0.4703,3205.2,3204.7,3.83]
[1763263916598,0.4703,3205.2,3204.6,0.001]
[1763263916599,0.5927,3204.8,3204.6,0.001]
[1763263916895,0.4686,3204.7,3204.6,0.001]
[1763263917815,0.405504,3205.1,3204.6,0.4563]
[1763263918111,0.002,3205.4,3204.6,0.4563]
[1763263918412,0.405504,3205.2,3204.6,0.001]
[1763263918703,3.91695402,3205.2,3204.6,0.001]
[1763263918866,0.4739,3204.7,3204.6,0.001]
[1763263919514,0.405504,3205.2,3204.6,0.4563]
[1763263919668,0.405504,3205.3,3204.6,0.9116]
[1763263920009,4.4694535,3205.3,3204.6,0.4563]
[1763263920170,0.405504,3205.1,3204.6,0.4563]
[1763263920566,0.4703,3205.0,3204.6,0.4563]
[1763263920789,0.4739,3204.7,3204.6,0.001]
[1763263925476,0.4703,3204.9,3204.6,0.001]
[1763263932381,0.482,3204.7,3204.6,0.001]
[1763263932979,0.4879,3205.0,3204.6,0.001]
[1763263933180,0.4788,3204.7,3204.6,0.001]
[1763263935520,0.483,3204.9,3204.6,0.001]
[1763263936222,0.4788,3204.7,3204.6,0.001]
[1763263937242,0.483,3204.9,3204.6,0.001]
[1763263937899,0.4788,3204.7,3204.6,0.001]
[1763263940702,0.483,3204.9,3204.6,0.001]
[1763263942100,0.4788,3204.7,3204.6,0.001]
[1763263942606,0.9618,3204.7,3204.6,0.001]
[1763263943225,0.4788,3204.7,3204.6,0.001]
[1763263944241,1.367304,3204.7,3204.6,0.001]
[1763263944424,1.8551794,3204.7,3204.6,0.001]
[1763263945935,1.3721794,3204.7,3204.6,0.001]
[1763263946099,2.9889202,3204.7,3204.6,0.001]
[1763263946302,1.8551794,3204.7,3204.6,0.001]
[1763263946503,2.5010448,3204.7,3204.6,0.001]
[1763263949338,5.62146168,3204.7,3204.6,0.001]
[1763263949505,2.5010448,3204.7,3204.6,0.001]
[1763263950350,5.62146168,3204.7,3204.6,0.001]
[1763263950644,2.5010448,3204.7,3204.6,0.001]
[1763263950852,3.76547539,3204.7,3204.6,0.001]
[1763263952448,3.28247539,3204.7,3204.6,0.001]
[1763263952614,2.0180448,3204.7,3204.6,0.001]
[1763263952818,2.5010448,3204.7,3204.6,0.001]
[1763263955364,0.1631643,3205.2,3204.6,0.4563]
[1763263955640,0.002,3205.3,3205.1,0.4553]
[1763263957946,0.002,3205.3,3205.2,0.6241]
[1763263958850,0.002,3205.3,3205.2,1.0794]
[1763263962736,0.002,3205.3,3205.2,2.37069084]
[1763263962936,0.002,3205.3,3205.2,5.04993502]
[1763263963139,0.002,3205.3,3205.2,5.88690638]
[1763263964058,0.002,3205.3,3205.2,5.04993502]
[1763263964357,0.002,3205.3,3205.2,2.37515558]
[1763263966026,0.002,3205.3,3205.2,1.91985558]
[1763263966228,0.002,3205.3,3204.9,0.4553]
[1763263966846,0.002,3205.3,3205.0,0.001]
[1763263967161,0.002,3205.3,3205.2,0.4553]
[1763263967366,0.002,3205.3,3205.2,0.6241]
[1763263967561,0.002,3205.3,3205.2,1.0794]
[1763263967748,0.002,3205.3,3205.2,0.4553]
[1763263968485,0.002,3205.3,3205.0,0.001]
[1763263968486,0.4766,3205.3,3205.0,0.001]
[1763263969242,0.002,3205.3,3205.0,0.001]
[1763263969863,0.4746,3205.1,3205.0,0.001]
[1763263970757,4.47975002,3205.1,3205.0,0.001]
[1763263970960,4.88525402,3205.1,3205.0,0.001]
[1763263971162,5.33342902,3205.1,3205.0,0.001]
[1763263972958,1.821979,3205.1,3205.0,0.001]
[1763263973338,1.328279,3205.1,3205.0,0.001]
[1763263973652,1.373804,3205.1,3205.0,0.001]
[1763263975354,0.880104,3205.1,3205.0,0.001]
[1763263976655,1.373804,3205.1,3205.0,0.001]
[1763263976861,0.880104,3205.1,3205.0,0.001]
[1763263977774,1.373804,3205.1,3205.0,0.001]
[1763263980957,0.405504,3205.1,3205.0,0.4563]
[1763263981343,0.405504,3205.1,3205.0,0.001]
[1763263981541,0.880104,3205.1,3205.0,0.001]
[1763263981746,1.373804,3205.1,3205.0,0.001]
[1763263985286,0.880104,3205.1,3205.0,0.001]
[1763263986683,1.367704,3205.1,3205.0,0.001]
[1763263989694,1.83416824,3205.1,3205.0,0.001]
[1763263990390,0.880104,3205.1,3205.0,0.001]
[1763263992389,1.367704,3205.1,3205.0,0.001]
[1763263996887,5.62147225,3205.1,3205.0,0.001]
[1763263997401,5.74656352,3205.1,3205.0,0.001]
[1763264011914,0.53059527,3205.1,3205.0,0.001]
[1763264012222,0.002,3205.3,3205.0,0.9116]
[1763264012520,0.002,3205.3,3205.2,0.6241]
[1763264012897,0.002,3205.3,3205.2,1.0794]
[1763264013106,0.002,3205.3,3205.2,1.27110706]
[1763264015882,0.002,3205.3,3205.2,0.81580706]
[1763264016082,0.881304,3205.3,3205.0,0.001]
[1763264016532,5.21798324,3205.1,3205.0,0.001]
[1763264016684,5.69508324,3205.1,3205.0,0.001]
[1763264017218,5.34307217,3205.1,3205.0,0.001]
[1763264017422,6.35467939,3205.1,3205.0,0.001]
[1763264018337,9.47470684,3205.1,3205.0,0.001]
[1763264020842,5.49377939,3205.1,3205.0,0.001]
[1763264021054,4.83418324,3205.1,3205.0,0.001]
[1763264021213,5.30798324,3205.1,3205.0,0.001]
[1763264022052,4.83418324,3205.1,3205.0,0.001]
[1763264022420,4.83418324,3205.1,3205.0,0.4563]
[1763264023152,1.5392448,3205.1,3205.0,0.4563]
[1763264026231,1.5392448,3205.1,3205.0,0.001]
[1763264029188,4.83418324,3205.1,3205.0,0.001]
[1763264029349,5.30798324,3205.1,3205.0,0.001]
[1763264032701,6.31608156,3205.1,3205.0,0.001]
[1763264032864,6.53681289,3205.1,3205.0,0.001]
[1763264033069,13.66230558,3205.1,3205.0,0.001]
[1763264035112,1.5392448,3205.0,3204.7,0.001]
[1763264035271,9.14588434,3204.8,3204.7,0.001]
[1763264035771,9.62298434,3204.8,3204.7,0.001]
[1763264036006,12.74330386,3204.8,3204.7,0.001]
[1763264036199,2.5916448,3204.8,3204.7,0.001]
[1763264036373,9.62298434,3204.8,3204.7,0.001]
[1763264036568,14.01762913,3204.8,3204.7,0.001]
[1763264037199,2.15362927,3204.8,3204.7,0.001]
[1763264037498,12.64180386,3204.8,3204.7,0.001]
[1763264041906,12.16470386,3204.8,3204.7,0.001]
[1763264042071,12.64180386,3204.8,3204.7,0.001]
[1763264043281,12.80501229,3204.8,3204.7,0.001]
[1763264044708,9.81566977,3204.9,3204.7,0.4563]
[1763264045012,11.35491457,3204.9,3204.8,0.4553]
[1763264045332,10.94941057,3204.9,3204.8,0.4553]
[1763264045610,10.22117377,3204.9,3204.8,0.4553]
[1763264045817,10.94941057,3204.9,3204.8,0.4553]
[1763264045981,11.51809243,3204.9,3204.8,0.4553]